bitfinex/quotes_SOLUSD_20260228
["timestamp","ask_amount","ask_price","bid_price","bid_amount"]
[1772241158021,0.48926422,82.193,82.161,0.46471289]
[1772241161716,0.48148486,82.191,82.161,0.46471289]
[1772241162619,0.48148486,82.189,82.161,0.46471289]
[1772241163415,0.48148486,82.189,82.161,12.63591288]
[1772241163606,0.48148486,82.189,82.162,0.45409571]
[1772241163804,0.48148486,82.202,82.171,0.45409571]
[1772241164717,0.48148486,82.201,82.171,0.45409571]
[1772241167619,0.48148486,82.199,82.171,0.45409571]
[1772241168697,0.48148486,82.189,82.161,0.45409571]
[1772241169116,0.48148486,82.179,82.156,0.45409571]
[1772241169312,0.48148486,82.179,82.151,12.17264577]
[1772241169521,0.48148486,82.179,82.152,0.45409571]
[1772241171419,0.48148486,82.177,82.153,12.62650572]
[1772241172214,0.48148486,82.177,82.154,0.45409571]
[1772241175230,30.41792602,82.189,82.154,0.45409571]
[1772241175231,0.48148486,82.175,82.154,0.45409571]
[1772241177431,0.48148486,82.175,82.156,0.45409571]
[1772241178130,0.48148486,82.174,82.156,0.45409571]
[1772241179130,0.48148486,82.172,82.156,0.45409571]
[1772241182139,0.48148486,82.185,82.161,0.45409571]
[1772241183210,0.48148486,82.179,82.13,0.45409571]
[1772241183411,0.48148486,82.179,82.141,0.45409571]
[1772241188636,0.48148486,82.177,82.143,0.45409571]
[1772241192433,0.47963649,82.169,82.142,12.17404007]
[1772241192627,0.47963649,82.169,82.136,12.1748644]
[1772241192828,0.47963649,82.169,82.137,0.48766887]
[1772241193633,0.47963649,82.167,82.137,0.48766887]
[1772241198443,0.47963649,82.165,82.137,0.48766887]
[1772241200556,12.17078039,82.164,82.137,0.48766887]
[1772241200753,0.47963649,82.163,82.137,0.48766887]
[1772241202038,0.47963649,82.163,82.138,0.48766887]
[1772241202236,0.47963649,82.163,82.137,12.17472152]
[1772241202237,0.47963649,82.163,82.141,0.48766887]
[1772241204160,0.47963649,82.161,82.141,0.48766887]
[1772241206150,4.14248046,82.17,82.141,0.48766887]
[1772241206151,0.47963649,82.159,82.141,0.48766887]
[1772241212963,0.47963649,82.157,82.141,0.48766887]
[1772241214656,0.47963649,82.155,82.141,0.48766887]
[1772241219082,0.47963649,82.159,82.141,0.48766887]
[1772241221676,4.14363004,82.18,82.143,0.48566805]
[1772241221973,0.1,82.21,82.161,0.48566805]
[1772241221974,0.28432314,82.199,82.161,0.48566805]
[1772241222551,4.14363004,82.2,82.161,0.48566805]
[1772241222755,12.16707831,82.189,82.161,0.48566805]
[1772241223879,0.4620019,82.188,82.161,0.48566805]
[1772241226181,0.4620019,82.186,82.161,0.48566805]
[1772241227678,0.4620019,82.184,82.161,0.48566805]
[1772241228179,0.4620019,82.184,82.163,0.48566805]
[1772241229680,0.4620019,82.182,82.163,0.48566805]
[1772241232071,0.4620019,82.18,82.163,0.48566805]
[1772241236784,12.16774586,82.185,82.163,0.48566805]
[1772241239590,12.16707831,82.189,82.163,0.48566805]
[1772241239773,0.4620019,82.188,82.163,0.48566805]
[1772241242685,12.1673744,82.187,82.163,0.48566805]
[1772241243086,12.6293763,82.187,82.163,0.48566805]
[1772241244593,0.4620019,82.186,82.163,0.48566805]
[1772241245675,12.16767049,82.185,82.163,0.48566805]
[1772241246176,12.62967239,82.185,82.163,0.48566805]
[1772241247586,12.62908303,82.189,82.165,0.48566805]
[1772241247798,0.4620019,82.192,82.171,0.48566805]
[1772241250913,0.4620019,82.192,82.136,25.0]
[1772241250914,0.46401534,82.209,82.182,0.45939841]
[1772241251080,12.62853199,82.207,82.182,0.45939841]
[1772241252689,12.16451665,82.207,82.182,0.45939841]
[1772241252891,12.62853199,82.207,82.182,0.45939841]
[1772241253290,12.62853199,82.207,82.183,0.45939841]
[1772241254122,12.62853199,82.207,82.191,0.45939841]
[1772241259908,12.62787113,82.211,82.191,0.45939841]
[1772241260293,12.16411828,82.209,82.191,0.45939841]
[1772241260613,12.62813362,82.209,82.191,0.45939841]
[1772241262705,0.46401534,82.208,82.191,0.45939841]
[1772241265919,12.62842956,82.207,82.191,0.45939841]
[1772241268012,0.46401534,82.211,82.191,0.45939841]
[1772241268203,0.56401534,82.21,82.191,0.45939841]
[1772241269712,0.46401534,82.208,82.191,0.45939841]
[1772241271507,0.28432314,82.207,82.17,4.14363004]
[1772241271711,0.46401534,82.197,82.161,12.17122479]
[1772241273520,0.46401534,82.195,82.162,0.45939841]
[1772241275418,0.46401534,82.193,82.164,0.45939841]
[1772241278608,12.16663422,82.192,82.165,12.17063226]
[1772241278813,0.46401534,82.191,82.166,0.45939841]
[1772241279013,0.46401534,82.191,82.157,0.45939841]
[1772241280711,12.16693028,82.19,82.161,0.45738669]
[1772241280910,0.45360707,82.189,82.161,0.45738669]
[1772241282226,0.48215345,82.187,82.161,0.45738669]
[1772241282804,0.48215345,82.187,82.163,0.49839038]
[1772241284625,30.41658555,82.192,82.163,0.49839038]
[1772241284626,0.48215345,82.185,82.163,0.49839038]
[1772241288123,0.48215345,82.183,82.147,12.17329908]
[1772241288319,0.48215345,82.179,82.147,12.17329908]
[1772241288513,0.48215345,82.179,82.148,0.49839038]
[1772241289138,0.48215345,82.179,82.151,0.49839038]
[1772241289518,110.01700533,82.229,82.161,0.49839038]
[1772241289519,12.16707831,82.189,82.161,0.49839038]
[1772241291535,0.48215345,82.186,82.161,0.49839038]
[1772241293031,0.48215345,82.186,82.162,0.49839038]
[1772241293339,0.48215345,82.19,82.162,0.49839038]
[1772241293538,0.48215345,82.188,82.162,0.49839038]
[1772241295843,0.48215345,82.186,82.162,0.49839038]
[1772241298821,3.69383402,82.209,82.15,4.14084661]
[1772241298822,4.24084661,82.22,82.171,0.49839038]
[1772241299028,12.16411828,82.209,82.171,0.49839038]
[1772241299222,0.28432314,82.208,82.171,0.49839038]
[1772241300850,0.02113528,82.205,82.173,0.49839038]
[1772241303047,0.02113528,82.204,82.175,0.49839038]
[1772241306932,0.02113528,82.204,82.175,12.16906785]
[1772241307231,0.02113528,82.204,82.176,0.49839038]
[1772241309144,0.02113528,82.219,82.181,0.49839038]
[1772241309332,0.02113528,82.219,82.191,0.49839038]
[1772241310228,0.02113528,82.218,82.191,0.49839038]
[1772241313549,0.02113528,82.209,82.181,0.48943236]
[1772241314452,0.02113528,82.209,82.161,25.0]
[1772241314453,0.02113528,82.199,82.171,0.48943236]
[1772241315054,0.02113528,82.189,82.156,0.48943236]
[1772241315236,3.69383402,82.216,82.156,0.48943236]
[1772241315237,0.02113528,82.179,82.156,0.48943236]
[1772241315437,0.02113528,82.178,82.156,0.48943236]
[1772241322565,0.02113528,82.178,82.148,0.48943236]
[1772241326050,0.02113528,82.178,82.15,0.48943236]
[1772241328371,0.02113528,82.178,82.142,0.48943236]
[1772241329649,0.02113528,82.178,82.143,12.17389187]
[1772241329848,0.02113528,82.178,82.144,0.48943236]
[1772241332674,0.02113528,82.178,82.145,12.17359547]
[1772241332866,0.02113528,82.178,82.146,0.48943236]
[1772241335765,42.58995606,82.179,82.091,8.70180882]
[1772241335766,0.4919317,82.168,82.091,8.70180882]
[1772241335969,0.4919317,82.139,82.098,12.18056469]
[1772241336566,4.14221419,82.13,82.098,12.18056469]
[1772241336768,0.4919317,82.129,82.098,12.18056469]
[1772241337370,12.66794145,82.129,82.091,42.63561169]
[1772241337554,0.4919317,82.133,82.1,4.14221419]
[1772241337754,0.4919317,82.133,82.101,0.46158367]
[1772241339476,0.4919317,82.133,82.102,12.17997125]
[1772241339778,0.4919317,82.133,82.103,0.46158367]
[1772241341875,0.4919317,82.133,82.1,4.14221419]
[1772241341876,0.49895692,82.131,82.105,0.4938883]
[1772241342055,0.49895692,82.129,82.105,0.4938883]
[1772241342376,12.17552232,82.132,82.08,30.65787758]
[1772241342377,0.49895692,82.119,82.096,0.4938883]
[1772241342557,0.49895692,82.119,82.086,12.18231912]
[1772241342558,0.49895692,82.119,82.091,0.4938883]
[1772241342958,0.49895692,82.115,82.091,0.4938883]
[1772241343951,0.49895692,82.113,82.091,0.4938883]
[1772241344156,0.49895692,82.124,82.093,0.4938883]
[1772241345361,12.67492399,82.129,82.093,0.4938883]
[1772241345676,3.69383402,82.147,82.092,42.63509233]
[1772241345677,0.49895692,82.135,82.111,0.4938883]
[1772241346873,12.17522585,82.134,82.111,0.4938883]
[1772241348179,0.49895692,82.134,82.101,0.4938883]
[1772241348663,4.14221419,82.12,82.101,0.4938883]
[1772241348869,0.49895692,82.119,82.101,0.4938883]
[1772241349783,0.49895692,82.119,82.096,0.4938883]
[1772241350161,0.49895692,82.117,82.096,0.4938883]
[1772241353180,4.14221419,82.12,82.096,0.4938883]
[1772241353381,4.14221419,82.12,82.089,30.45452806]
[1772241353382,16.3181647,82.13,82.101,0.4938883]
[1772241355667,16.3181647,82.13,82.103,0.4938883]
[1772241356779,16.81712162,82.13,82.103,0.4938883]
[1772241356974,0.49895692,82.136,82.103,0.4938883]
[1772241357172,0.49895692,82.139,82.105,0.4938883]
[1772241359488,0.49895692,82.139,82.091,25.0]
[1772241359489,12.17398239,82.143,82.111,0.4938883]
[1772241359988,12.67293931,82.143,82.111,0.4938883]
[1772241360782,12.67293931,82.143,82.11,4.14221419]
[1772241360783,4.14221419,82.15,82.12,4.14221419]
[1772241360988,4.14221419,82.18,82.141,0.49419464]
[1772241361179,12.16855887,82.179,82.141,0.49419464]
[1772241361378,12.16835811,82.181,82.151,0.49419464]
[1772241363697,42.86909724,82.189,82.153,0.49419464]
[1772241365175,42.86909724,82.189,82.155,0.49419464]
[1772241365380,42.86909724,82.189,82.161,0.49419464]
[1772241366593,42.5847741,82.189,82.161,0.49419464]
[1772241368987,0.28432314,82.188,82.161,0.49419464]
[1772241369602,42.57959342,82.199,82.161,0.49419464]
[1772241370281,0.28432314,82.198,82.161,0.49419464]
[1772241370493,0.28432314,82.198,82.163,0.49419464]
[1772241371092,0.28432314,82.198,82.142,30.43510019]
[1772241371093,0.28432314,82.189,82.154,0.49419464]
[1772241373199,4.14221419,82.18,82.154,0.49419464]
[1772241376105,60.82718965,82.201,82.154,0.49419464]
[1772241376306,4.14221419,82.18,82.154,0.49419464]
[1772241376806,0.28432314,82.189,82.154,0.49419464]
[1772241380584,0.28432314,82.187,82.154,0.49419464]
[1772241383494,4.14221419,82.18,82.154,0.49419464]
[1772241385396,4.14221419,82.17,82.149,0.49419464]
[1772241385601,4.14221419,82.17,82.132,0.49419464]
[1772241387308,12.16870695,82.178,82.151,0.49419464]
[1772241387515,30.41838205,82.188,82.153,0.49419464]
[1772241387516,0.28432314,82.187,82.153,0.49419464]
[1772241388609,0.14216157,82.185,82.155,0.49419464]
[1772241388809,3.69383402,82.2,82.154,12.17226184]
[1772241388810,12.16604214,82.196,82.171,0.49419464]
[1772241389715,0.28432314,82.195,82.171,0.49419464]
[1772241391217,4.14221419,82.19,82.151,0.49419464]
[1772241391907,12.16633817,82.194,82.171,0.49419464]
[1772241395224,0.28432314,82.202,82.171,0.49419464]
[1772241397316,0.28432314,82.2,82.171,0.49419464]
[1772241398220,12.16530212,82.201,82.173,0.49419464]
[1772241399709,30.41286251,82.203,82.175,0.49419464]
[1772241403312,42.57441398,82.209,82.177,0.49419464]
[1772241403512,0.28432314,82.208,82.177,0.49419464]
[1772241404902,12.16441422,82.207,82.177,0.49419464]
[1772241405103,30.40681236,82.219,82.181,0.49419464]
[1772241405320,12.16278673,82.218,82.181,0.49419464]
[1772241405506,0.28432314,82.217,82.181,0.49419464]
[1772241407428,12.16308261,82.216,82.183,0.49419464]
[1772241407622,42.57078913,82.216,82.183,0.49419464]
[1772241408118,4.13990416,82.21,82.171,0.49419464]
[1772241408312,4.13990416,82.21,82.172,0.49419464]
[1772241409527,42.57078913,82.216,82.181,0.49419464]
[1772241410919,42.57078913,82.216,82.182,12.16811467]
[1772241411233,42.57078913,82.216,82.183,0.49419464]
[1772241412634,12.26258169,82.22,82.183,0.49419464]
[1772241412817,12.26258169,82.22,82.191,0.49419464]
[1772241413716,0.1,82.22,82.192,0.49419464]
[1772241415825,4.23990416,82.22,82.192,0.49419464]
[1772241419112,12.1626388,82.219,82.193,12.16648619]
[1772241419436,12.1626388,82.219,82.194,0.49419464]
[1772241420631,0.1,82.22,82.196,0.49419464]
[1772241420832,0.1,82.23,82.201,0.48433449]
[1772241421641,0.11161072,82.229,82.201,0.48433449]
[1772241422040,4.23990416,82.23,82.201,0.48433449]
[1772241422540,0.1,82.23,82.201,0.48433449]
[1772241423024,0.1,82.23,82.203,0.48433449]
[1772241423340,0.11161072,82.229,82.203,0.48433449]
[1772241425542,12.2727704,82.229,82.203,0.48433449]
[1772241426523,12.2727704,82.229,82.205,0.48433449]
[1772241426723,12.16115968,82.229,82.205,0.48433449]
[1772241428534,0.11161072,82.229,82.205,0.48433449]
[1772241428739,0.11161072,82.229,82.207,0.48433449]
[1772241429536,0.1,82.23,82.207,0.48433449]
[1772241430034,0.1,82.23,82.211,0.48433449]
[1772241431456,0.1,82.23,82.213,0.47448142]
[1772241436651,0.1,82.23,82.215,0.47448142]
[1772241437841,0.1,82.23,82.217,0.47448142]
[1772241438149,0.1,82.24,82.216,12.16308261]
[1772241438150,0.1,82.24,82.221,0.47448142]
[1772241439228,0.31161072,82.24,82.221,0.47448142]
[1772241439429,0.21161072,82.238,82.216,12.16308261]
[1772241439957,0.21161072,82.238,82.216,0.47448142]
[1772241441859,0.1,82.24,82.221,0.47448142]
[1772241442028,0.1,82.25,82.222,0.47448142]
[1772241443049,0.1,82.25,82.231,0.47448142]
[1772241443944,0.1,82.25,82.233,0.47448142]
[1772241448976,0.41161072,82.25,82.233,0.47448142]
[1772241453372,0.31161072,82.249,82.233,0.47448142]
[1772241453951,0.1,82.25,82.233,0.47448142]
[1772241454155,0.1,82.25,82.235,0.47448142]
[1772241454667,0.1,82.26,82.241,0.47448142]
[1772241454861,0.45693218,82.272,82.242,0.47448142]
[1772241456077,0.45693218,82.27,82.244,0.47448142]
[1772241457798,0.45693218,82.268,82.244,0.47448142]
[1772241457960,12.15524681,82.269,82.231,0.47448142]
[1772241457961,0.45693218,82.266,82.231,0.47448142]
[1772241458390,0.45693218,82.239,82.215,0.47448142]
[1772241459069,0.45693218,82.239,82.202,0.47448142]
[1772241459872,0.14216157,82.266,82.231,0.47448142]
[1772241460074,0.45693218,82.265,82.231,0.47448142]
[1772241460485,0.45693218,82.265,82.241,0.47714121]
[1772241462984,0.45693218,82.265,82.243,0.49744256]
[1772241465285,0.4750941,82.249,82.215,0.49744256]
[1772241465486,0.4750941,82.249,82.221,0.49744256]
[1772241465783,0.4750941,82.249,82.211,0.49744256]
[1772241466688,0.4750941,82.249,82.221,0.49744256]
[1772241471188,0.4750941,82.249,82.222,0.49744256]
[1772241471189,12.15835035,82.248,82.222,0.49744256]
[1772241471374,0.4750941,82.247,82.222,0.49744256]
[1772241471577,12.15835035,82.248,82.213,0.49744256]
[1772241471578,0.4750941,82.245,82.213,0.49744256]
[1772241471777,0.4750941,82.239,82.205,0.49744256]
[1772241472171,42.55422623,82.248,82.204,12.16476837]
[1772241472172,0.4750941,82.245,82.221,0.49744256]
[1772241473287,12.15835035,82.248,82.223,0.49744256]
[1772241473670,12.15835035,82.248,82.222,12.16219503]
[1772241473671,0.4750941,82.255,82.231,0.49744256]
[1772241473870,0.4750941,82.26,82.231,0.49744256]
[1772241474482,0.4750941,82.259,82.223,0.49744256]
[1772241475389,0.4750941,82.257,82.223,0.49744256]
[1772241476990,12.15716786,82.256,82.223,0.49744256]
[1772241477187,0.4750941,82.255,82.225,0.49744256]
[1772241479500,0.4750941,82.253,82.225,0.49744256]
[1772241480296,0.1,82.28,82.241,0.49744256]
[1772241480480,0.1,82.28,82.261,0.49744256]
[1772241482488,0.1,82.28,82.223,0.28432314]
[1772241482489,0.4750941,82.279,82.223,0.28432314]
[1772241482687,0.4750941,82.279,82.24,4.13250864]
[1772241482898,4.23250864,82.28,82.23,4.13250864]
[1772241482899,0.4750941,82.269,82.23,4.13250864]
[1772241483701,0.4750941,82.267,82.231,12.1608639]
[1772241484586,4.13250864,82.26,82.22,16.29499951]
[1772241484791,0.4750941,82.259,82.232,0.49744256]
[1772241485898,0.4750941,82.257,82.233,0.49744256]
[1772241486304,0.4750941,82.257,82.227,0.49744256]
[1772241487506,0.4750941,82.255,82.227,0.49744256]
[1772241487999,0.4750941,82.255,82.223,0.49744256]
[1772241490094,0.4750941,82.253,82.223,0.49744256]
[1772241490889,0.48392368,82.249,82.223,0.49744256]
[1772241492401,0.48392368,82.247,82.223,0.49744256]
[1772241492712,0.48392368,82.247,82.224,0.4605866]
[1772241494913,0.48392368,82.245,82.224,0.4605866]
[1772241495796,0.48392368,82.245,82.226,0.4605866]
[1772241495995,0.48392368,82.245,82.221,0.4605866]
[1772241497214,0.48392368,82.245,82.22,4.13250864]
[1772241497215,0.28432314,82.258,82.223,0.4605866]
[1772241497713,0.48392368,82.255,82.223,0.4605866]
[1772241499207,0.48392368,82.253,82.223,0.4605866]
[1772241499411,0.48392368,82.249,82.223,0.4605866]
[1772241500812,12.64080308,82.258,82.231,0.4605866]
[1772241501031,12.15613337,82.263,82.241,0.4605866]
[1772241504102,12.1554159,82.268,82.251,0.4605866]
[1772241505492,0.48392368,82.275,82.253,0.4605866]
[1772241505691,12.15420324,82.277,82.253,0.4605866]
[1772241506324,0.1,82.28,82.261,0.4605866]
[1772241506621,0.48392368,82.286,82.251,12.15789029]
[1772241506622,0.1,82.29,82.27,4.59309524]
[1772241506799,0.58392368,82.29,82.271,0.4605866]
[1772241507422,12.15229252,82.289,82.271,0.4605866]
[1772241507623,0.48392368,82.289,82.271,0.4605866]
[1772241512415,0.48392368,82.287,82.261,0.4605866]
[1772241513119,0.48392368,82.285,82.256,0.4605866]
[1772241515619,0.48392368,82.283,82.25,4.13250864]
[1772241515817,0.48392368,82.279,82.251,0.4605866]
[1772241516998,0.48392368,82.279,82.252,0.4605866]
[1772241517404,42.53560837,82.284,82.252,0.4605866]
[1772241517603,0.48392368,82.309,82.273,0.4605866]
[1772241517802,0.48392368,82.309,82.29,4.13250864]
[1772241518029,0.48392368,82.309,82.286,0.4605866]
[1772241519228,0.48392368,82.309,82.291,0.4605866]
[1772241521199,0.1,82.31,82.291,0.4605866]
[1772241521519,0.1,82.32,82.301,0.49288665]
[1772241522416,0.1,82.32,82.31,4.12787885]
[1772241523026,12.14585084,82.333,82.311,0.49288665]
[1772241523209,0.49233993,82.338,82.312,0.49288665]
[1772241523902,0.49233993,82.336,82.312,0.49288665]
[1772241525205,0.49233993,82.334,82.312,0.49288665]
[1772241526804,0.49233993,82.332,82.303,0.49288665]
[1772241527325,0.49233993,82.332,82.311,0.49288665]
[1772241529618,0.49233993,82.33,82.311,0.49288665]
[1772241530020,0.49233993,82.33,82.303,0.49288665]
[1772241530223,0.49233993,82.338,82.311,0.49288665]
[1772241530719,0.49233993,82.338,82.313,0.49288665]
[1772241534345,4.12787885,82.35,82.321,0.49288665]
[1772241534346,12.42776143,82.349,82.321,0.49288665]
[1772241534535,12.14343829,82.349,82.321,0.49288665]
[1772241534833,12.63577822,82.349,82.321,0.49288665]
[1772241535040,0.49233993,82.348,82.321,0.49288665]
[1772241535737,0.49233993,82.329,82.298,0.49288665]
[1772241536040,0.49233993,82.329,82.3,4.12787885]
[1772241536617,0.49233993,82.327,82.3,4.6207655]
[1772241536820,0.49233993,82.327,82.301,0.49288665]
[1772241537015,0.49233993,82.327,82.302,0.49288665]
[1772241537223,0.49233993,82.336,82.302,0.49288665]
[1772241537521,0.49233993,82.336,82.311,0.49288665]
[1772241537722,0.49233993,82.342,82.311,0.49288665]
[1772241537922,0.49233993,82.34,82.311,0.49288665]
[1772241538940,0.49233993,82.34,82.313,0.49288665]
[1772241540151,0.49233993,82.338,82.31,4.12787885]
[1772241540445,0.49233993,82.338,82.311,0.49288665]
[1772241541531,0.49233993,82.336,82.311,0.49288665]
[1772241542127,0.49233993,82.336,82.313,0.49288665]
[1772241544541,0.49233993,82.336,82.315,0.49288665]
[1772241544744,12.63781007,82.336,82.315,0.49288665]
[1772241545149,0.49233993,82.335,82.315,0.49288665]
[1772241546038,12.14547014,82.336,82.315,0.49288665]
[1772241546441,0.49233993,82.336,82.315,0.49288665]
[1772241548846,0.49233993,82.332,82.275,0.49288665]
[1772241549053,0.49233993,82.309,82.281,3.69383402]
[1772241549350,151.81878906,82.335,82.28,4.12787885]
[1772241549351,0.49233993,82.305,82.28,4.12787885]
[1772241549545,0.49233993,82.311,82.281,0.49288665]
[1772241550652,12.14919207,82.31,82.281,0.49288665]
[1772241551673,0.28432314,82.319,82.28,16.28140778]
[1772241551674,12.14865714,82.314,82.283,0.49824725]
[1772241551840,12.14865714,82.314,82.291,0.49824725]
[1772241553841,0.49564998,82.313,82.291,0.49824725]
[1772241556243,0.49564998,82.311,82.291,0.49824725]
[1772241556441,0.49564998,82.311,82.285,0.49824725]
[1772241558064,0.49564998,82.309,82.271,0.49824725]
[1772241558267,0.49564998,82.307,82.271,0.49824725]
[1772241558962,42.52320551,82.308,82.241,0.49824725]
[1772241558963,0.49564998,82.279,82.241,0.49824725]
[1772241559141,0.49564998,82.269,82.241,0.49824725]
[1772241561167,4.12787885,82.27,82.241,0.49824725]
[1772241561168,0.49564998,82.267,82.241,0.49824725]
[1772241561771,12.15485671,82.272,82.243,0.49824725]
[1772241562453,0.49564998,82.269,82.243,0.49824725]
[1772241562769,0.49564998,82.269,82.236,0.49824725]
[1772241563268,12.15539456,82.268,82.238,0.49824725]
[1772241563464,12.65104454,82.268,82.238,0.49824725]
[1772241563659,0.49564998,82.267,82.238,0.49824725]
[1772241564470,0.49564998,82.267,82.204,25.0]
[1772241564471,0.49564998,82.259,82.221,0.49824725]
[1772241565070,0.49564998,82.259,82.222,0.49824725]
[1772241565768,0.49564998,82.257,82.222,0.49824725]
[1772241565967,0.49564998,82.257,82.224,0.49824725]
[1772241566171,0.49564998,82.257,82.231,0.49824725]
[1772241567171,12.15716786,82.256,82.231,0.49824725]
[1772241567774,12.15666071,82.26,82.233,0.49824725]
[1772241568071,0.49564998,82.259,82.233,0.49824725]
[1772241569275,12.65252225,82.258,82.233,0.49824725]
[1772241570371,0.49564998,82.257,82.233,0.49824725]
[1772241570885,0.49564998,82.257,82.235,0.49824725]
[1772241572675,12.15583784,82.265,82.241,0.49824725]
[1772241574482,12.15524681,82.269,82.241,0.49824725]
[1772241575164,12.15524681,82.269,82.243,0.49824725]
[1772241575367,12.65089679,82.269,82.243,0.49824725]
[1772241576377,0.49564998,82.283,82.251,0.49824725]
[1772241576566,48.59251811,82.318,82.261,0.49824725]
[1772241576567,0.49564998,82.299,82.261,0.49824725]
[1772241576774,0.49564998,82.295,82.261,0.49824725]
[1772241577674,0.49564998,82.279,82.242,0.49824725]
[1772241578677,0.49564998,82.277,82.244,0.49824725]
[1772241578875,0.49564998,82.277,82.251,0.49824725]
[1772241580582,0.49564998,82.277,82.253,0.46704723]
[1772241584680,0.48436859,82.275,82.253,0.46704723]
[1772241584888,0.48436859,82.275,82.241,0.46704723]
[1772241586587,0.48436859,82.273,82.243,0.46704723]
[1772241587770,0.48436859,82.273,82.242,12.15923737]
[1772241587771,0.48436859,82.273,82.251,0.46704723]
[1772241589084,0.48436859,82.273,82.253,0.46704723]
[1772241589266,0.48436859,82.277,82.253,0.46704723]
[1772241591085,0.48436859,82.277,82.254,12.15746346]
[1772241591385,4.13124375,82.29,82.255,0.46704723]
[1772241591386,0.48436859,82.285,82.255,0.46704723]
[1772241594291,4.13124375,82.29,82.257,0.46704723]
[1772241594292,0.48436859,82.283,82.257,0.46704723]
[1772241596476,30.38193503,82.286,82.257,0.46704723]
[1772241596477,12.15332636,82.282,82.257,0.46704723]
[1772241596678,0.48627395,82.281,82.257,0.46704723]
[1772241597580,0.48627395,82.281,82.259,0.47418865]
[1772241600095,0.48627395,82.281,82.261,0.47418865]
[1772241600595,0.48627395,82.302,82.271,0.47418865]
[1772241600795,0.48627395,82.307,82.281,0.47418865]
[1772241601300,0.48627395,82.327,82.29,4.13124375]
[1772241601504,0.48627395,82.319,82.281,0.47418865]
[1772241602197,0.48627395,82.317,82.291,0.47418865]
[1772241603500,12.14753975,82.322,82.301,0.47418865]
[1772241603685,48.5679622,82.359,82.282,42.53664227]
[1772241603686,0.48627395,82.329,82.282,42.53664227]
[1772241603885,0.48627395,82.319,82.282,42.53664227]
[1772241604087,0.48627395,82.319,82.29,4.13124375]
[1772241604597,0.48627395,82.317,82.29,4.13124375]
[1772241604900,0.48627395,82.338,82.31,4.13124375]
[1772241605405,3.69383402,82.359,82.282,42.53664227]
[1772241605406,0.48627395,82.357,82.32,4.13124375]
[1772241605606,0.48627395,82.349,82.31,4.13124375]
[1772241605784,0.48627395,82.349,82.311,0.41675807]
[1772241607107,0.48627395,82.347,82.32,4.13124375]
[1772241608504,0.48627395,82.339,82.3,4.13124375]
[1772241608885,0.48627395,82.339,82.301,0.41675807]
[1772241609200,0.48627395,82.339,82.306,0.41675807]
[1772241609408,0.48627395,82.339,82.311,0.41675807]
[1772241609705,0.48627395,82.339,82.305,42.52475547]
[1772241609706,0.48627395,82.345,82.321,0.41675807]
[1772241610800,0.48992725,82.343,82.312,0.41675807]
[1772241611011,0.48992725,82.343,82.31,4.13124375]
[1772241611200,0.48992725,82.343,82.31,16.28040734]
[1772241612693,0.48992725,82.343,82.31,4.13124375]
[1772241612898,0.48992725,82.338,82.306,12.56652969]
[1772241614092,30.36043913,82.344,82.31,4.13124375]
[1772241614093,0.48992725,82.336,82.31,4.13124375]
[1772241614491,0.48992725,82.317,82.264,12.57274367]
[1772241614688,0.48992725,82.317,82.26,4.13124375]
[1772241614689,0.48992725,82.297,82.26,4.13124375]
[1772241614913,0.28432314,82.298,82.252,12.15775908]
[1772241614914,0.48992725,82.289,82.252,12.15775908]
[1772241615108,0.48992725,82.289,82.253,0.41675807]
[1772241615990,0.48992725,82.287,82.255,0.41675807]
[1772241616295,0.48992725,82.287,82.26,4.54800182]
[1772241616491,0.48992725,82.287,82.26,0.41675807]
[1772241616696,0.48992725,82.287,82.251,0.41675807]
[1772241617814,0.48992725,82.285,82.251,0.41675807]
[1772241619597,0.48992725,82.279,82.245,0.41675807]
[1772241619911,0.48992725,82.279,82.233,30.40112705]
[1772241619912,0.48992725,82.277,82.251,0.41675807]
[1772241620917,0.48992725,82.277,82.241,0.41675807]
[1772241622407,0.48992725,82.275,82.25,4.13124375]
[1772241622607,0.48992725,82.275,82.248,0.41675807]
[1772241623407,0.48992725,82.269,82.232,0.41675807]
[1772241623616,0.48992725,82.259,82.226,0.41675807]
[1772241624197,0.48992725,82.259,82.23,4.13124375]
[1772241624604,0.28432314,82.28,82.231,0.49352989]
[1772241624810,4.13124375,82.26,82.231,0.49352989]
[1772241626124,0.28432314,82.269,82.231,0.49352989]
[1772241626415,4.13124375,82.27,82.233,0.49352989]
[1772241626613,0.48992725,82.269,82.233,0.49352989]
[1772241627606,0.48992725,82.267,82.23,4.13124375]
[1772241627817,0.28432314,82.268,82.224,12.1618959]
[1772241627818,0.48992725,82.259,82.224,12.1618959]
[1772241628001,0.48992725,82.259,82.221,0.49352989]
[1772241629108,4.13124375,82.26,82.223,0.49352989]
[1772241629109,0.48992725,82.257,82.223,0.49352989]
[1772241629432,0.48992725,82.257,82.231,0.49352989]
[1772241631523,0.48992725,82.257,82.22,30.60614954]
[1772241631524,0.48992725,82.279,82.241,0.49352989]
[1772241631700,0.48992725,82.276,82.241,0.49352989]
[1772241634713,42.53819321,82.279,82.243,0.49352989]
[1772241634714,0.48992725,82.274,82.243,0.49352989]
[1772241636806,0.48992725,82.272,82.24,4.13124375]
[1772241637924,0.48992725,82.259,82.225,0.49352989]